bitfinex-derivatives/quotes_BTCF0:USTF0_20250926
["timestamp","ask_amount","ask_price","bid_price","bid_amount"]
[1758899260149,0.4863409,109110.0,109100.0,0.10369482]
[1758899260450,0.8471409,109110.0,109100.0,0.10369482]
[1758899260646,0.8471409,109110.0,109100.0,0.1694743]
[1758899260846,0.8471409,109110.0,109100.0,1.1281536]
[1758899261444,1.2471409,109110.0,109100.0,0.1694743]
[1758899261746,1.2471409,109110.0,109100.0,0.10369482]
[1758899261951,1.2471409,109110.0,109100.0,0.01204]
[1758899263142,1.32182401,109110.0,109100.0,0.01204]
[1758899263843,1.32182401,109110.0,109100.0,0.1036393]
[1758899264040,0.83023311,109110.0,109100.0,0.19529412]
[1758899264244,0.75555,109110.0,109100.0,0.19529412]
[1758899264446,0.75555,109110.0,109100.0,0.2610736]
[1758899264651,0.8471409,109110.0,109100.0,0.2610736]
[1758899265054,0.75555,109110.0,109100.0,0.2610736]
[1758899266349,0.8471409,109110.0,109100.0,0.2610736]
[1758899267045,0.75555,109110.0,109100.0,0.2610736]
[1758899268351,0.73446,109110.0,109100.0,0.6610736]
[1758899269155,0.7216,109110.0,109100.0,0.67679094]
[1758899269355,0.73446,109110.0,109100.0,0.67679094]
[1758899272453,0.3608,109110.0,109100.0,1.96689481]
[1758899272652,0.37366,109120.0,109110.0,0.0915908]
[1758899273054,0.37366,109120.0,109110.0,0.17308762]
[1758899273250,0.37366,109120.0,109110.0,0.26474244]
[1758899273445,0.37366,109120.0,109110.0,0.73916193]
[1758899273655,0.37366,109130.0,109120.0,0.0915824]
[1758899274252,0.37366,109130.0,109120.0,0.9586624]
[1758899274444,0.37366,109130.0,109120.0,1.05030882]
[1758899275259,0.37366,109130.0,109120.0,1.05026882]
[1758899276152,0.37366,109130.0,109120.0,0.18322882]
[1758899276354,0.4863241,109130.0,109120.0,0.18322882]
[1758899276655,0.4863241,109130.0,109120.0,1.11602802]
[1758899276954,0.4943241,109130.0,109120.0,1.11602802]
[1758899277251,0.40275,109130.0,109120.0,1.11602802]
[1758899277654,0.38166,109130.0,109120.0,1.05026882]
[1758899278357,0.40275,109130.0,109120.0,0.18322882]
[1758899278561,0.40275,109130.0,109120.0,1.05022882]
[1758899279857,0.40275,109130.0,109120.0,0.18322882]
[1758899280161,0.40275,109130.0,109120.0,1.11594784]
[1758899280349,0.38166,109130.0,109120.0,1.05018882]
[1758899281357,0.38166,109130.0,109120.0,1.11595377]
[1758899282354,0.40275,109130.0,109120.0,1.11591377]
[1758899282550,0.38166,109130.0,109120.0,1.11591377]
[1758899284162,0.3688,109130.0,109120.0,1.54960972]
[1758899284463,0.3688,109130.0,109120.0,1.63106654]
[1758899284863,0.008,109130.0,109120.0,1.54956972]
[1758899285364,0.008,109130.0,109120.0,1.63171432]
[1758899285863,0.008,109130.0,109120.0,0.76483432]
[1758899286064,0.008,109130.0,109120.0,1.63167432]
[1758899286263,0.008,109130.0,109120.0,0.76483432]
[1758899286467,0.0207,109130.0,109120.0,1.63167432]
[1758899286859,0.008,109130.0,109120.0,0.36483432]
[1758899287162,0.0422,109130.0,109120.0,0.36483432]
[1758899287465,0.403,109130.0,109120.0,1.13217342]
[1758899287666,0.403,109130.0,109120.0,0.26537342]
[1758899287867,0.403,109130.0,109120.0,1.13217342]
[1758899288267,0.403,109130.0,109120.0,0.26537342]
[1758899288767,0.403,109130.0,109120.0,0.18322892]
[1758899288768,0.4945741,109130.0,109120.0,0.18322892]
[1758899289069,0.4945741,109130.0,109120.0,1.11567043]
[1758899289265,0.403,109130.0,109120.0,1.04998892]
[1758899290567,0.403,109130.0,109120.0,1.04994892]
[1758899290767,0.4945741,109130.0,109120.0,1.04994892]
[1758899291268,0.403,109130.0,109120.0,1.04994892]
[1758899292466,0.4945741,109130.0,109120.0,0.18322892]
[1758899292666,0.4945741,109130.0,109120.0,1.04994892]
[1758899292960,0.403,109130.0,109120.0,0.24891043]
[1758899293162,0.4945741,109130.0,109120.0,0.15732793]
[1758899293364,0.8945741,109130.0,109120.0,0.92648642]
[1758899293757,0.8945741,109130.0,109120.0,1.01806892]
[1758899294159,0.803,109130.0,109120.0,1.01806892]
[1758899294366,0.403,109130.0,109120.0,1.01806892]
[1758899294569,0.403,109130.0,109120.0,1.08375043]
[1758899295562,0.4945741,109130.0,109120.0,1.02404793]
[1758899295870,0.403,109130.0,109120.0,1.11563043]
[1758899296073,0.3815,109130.0,109120.0,1.11563043]
[1758899296367,0.3815,109130.0,109120.0,1.47268742]
[1758899296870,0.3815,109130.0,109120.0,1.40700591]
[1758899297367,0.3688,109130.0,109120.0,1.80700591]
[1758899297564,0.3815,109130.0,109120.0,1.80700591]
[1758899298155,0.403,109130.0,109120.0,0.94028591]
[1758899298361,0.3815,109130.0,109120.0,1.44990892]
[1758899298566,0.403,109130.0,109120.0,0.58322892]
[1758899298870,0.3815,109130.0,109120.0,1.44990892]
[1758899299268,0.3688,109130.0,109120.0,1.80696591]
[1758899299473,0.3815,109130.0,109120.0,1.80696591]
[1758899300068,0.3815,109130.0,109120.0,1.44990892]
[1758899300269,0.3815,109130.0,109120.0,1.80696591]
[1758899300767,0.403,109130.0,109120.0,0.26537352]
[1758899300973,0.403,109130.0,109120.0,1.13201352]
[1758899301465,0.403,109130.0,109120.0,0.26537352]
[1758899301670,0.403,109130.0,109120.0,0.24907644]
[1758899302070,0.8945741,109130.0,109120.0,0.09164642]
[1758899302873,0.8945741,109130.0,109120.0,0.87640642]
[1758899303264,0.8945741,109130.0,109120.0,0.09164642]
[1758899303464,0.8945741,109130.0,109120.0,0.95828642]
[1758899303768,0.803,109130.0,109120.0,1.04986892]
[1758899304580,0.8945741,109130.0,109120.0,1.04986892]
[1758899304876,0.8945741,109130.0,109120.0,1.02413394]
[1758899305460,0.8945741,109130.0,109120.0,0.24907644]
[1758899305666,0.8945741,109130.0,109120.0,1.11571644]
[1758899306065,0.803,109130.0,109120.0,1.11571644]
[1758899306467,0.803,109130.0,109120.0,0.24907644]
[1758899306668,0.803,109130.0,109120.0,1.11571644]
[1758899307071,0.803,109130.0,109120.0,1.04986892]
[1758899307572,0.3815,109130.0,109120.0,1.48907051]
[1758899308470,0.3688,109130.0,109120.0,1.48907051]
[1758899308671,0.3815,109130.0,109120.0,1.48907051]
[1758899309071,0.3688,109130.0,109120.0,1.48907051]
[1758899309270,0.3688,109130.0,109120.0,1.88907051]
[1758899310270,0.008,109130.0,109120.0,1.88907051]
[1758899311166,0.0207,109130.0,109120.0,1.88907051]
[1758899311578,0.3815,109130.0,109120.0,1.88907051]
[1758899311776,0.3815,109130.0,109120.0,1.88903051]
[1758899312371,0.008,109130.0,109120.0,1.88903051]
[1758899314276,0.38274,109130.0,109120.0,1.53193352]
[1758899314478,0.38274,109130.0,109120.0,1.02243051]
[1758899314876,0.40552,109130.0,109120.0,0.66537352]
[1758899315081,0.40552,109130.0,109120.0,1.53193352]
[1758899315478,0.40552,109130.0,109120.0,0.66537352]
[1758899315681,0.40552,109130.0,109120.0,1.13193352]
[1758899315982,0.40552,109130.0,109120.0,0.26537352]
[1758899316280,0.4970941,109130.0,109120.0,1.13189352]
[1758899316482,0.40552,109130.0,109120.0,1.13189352]
[1758899316780,0.40552,109130.0,109120.0,1.13193352]
[1758899316978,0.40552,109130.0,109120.0,0.26541352]
[1758899317281,0.8970941,109130.0,109120.0,1.13193352]
[1758899317973,0.8970941,109130.0,109120.0,0.26541352]
[1758899318375,0.8970941,109130.0,109120.0,1.13193352]
[1758899318781,0.80552,109130.0,109120.0,1.13193352]
[1758899319384,0.8970941,109130.0,109120.0,1.13193352]
[1758899319593,0.40552,109130.0,109120.0,1.13193352]
[1758899321790,0.40552,109130.0,109120.0,1.04978892]
[1758899322792,0.4970941,109130.0,109120.0,0.18326892]
[1758899322992,0.4970941,109130.0,109120.0,1.04974892]
[1758899323192,0.4970941,109130.0,109120.0,0.18326892]
[1758899323396,0.4970941,109130.0,109120.0,1.04974892]
[1758899324092,0.8970941,109130.0,109120.0,0.09168642]
[1758899324900,0.8970941,109130.0,109120.0,1.04974892]
[1758899326388,0.80552,109130.0,109120.0,1.04974892]
[1758899327500,0.8970941,109130.0,109120.0,1.04974892]
[1758899329203,0.8970941,109130.0,109120.0,1.13189352]
[1758899329404,0.8970941,109130.0,109120.0,0.17383102]
[1758899329702,0.8970941,109130.0,109120.0,1.04027102]
[1758899330103,0.8970941,109130.0,109120.0,0.95812642]
[1758899330404,0.8970941,109130.0,109120.0,0.09168642]
[1758899330598,0.4970941,109130.0,109120.0,0.09168642]
[1758899331107,0.85415109,109130.0,109120.0,0.09168642]
[1758899331301,1.72059109,109130.0,109120.0,4e-05]
[1758899331500,0.1055225,109120.0,109110.0,0.06589347]
[1758899331805,0.84615949,109120.0,109110.0,0.15753149]
[1758899332291,0.92019844,109120.0,109110.0,0.09163802]
[1758899332499,0.1283109,109110.0,109100.0,0.15753247]
[1758899332701,0.84616789,109110.0,109100.0,4e-05]
[1758899332903,0.4891109,109110.0,109100.0,0.24915387]
[1758899333298,0.4871109,109110.0,109100.0,0.24915387]
[1758899333606,0.4871109,109110.0,109100.0,0.15755457]
[1758899333607,0.49396187,109110.0,109100.0,0.15755457]
[1758899334196,0.89396187,109110.0,109100.0,0.07290815]
[1758899335096,1.25101886,109110.0,109100.0,0.007]
[1758899335302,0.1055476,109090.0,109080.0,0.26664914]
[1758899335502,0.8499276,109090.0,109080.0,0.28922914]
[1758899335708,0.8499276,109090.0,109080.0,0.12034914]
[1758899335906,0.8499276,109090.0,109080.0,0.21200396]
[1758899336611,1.2499276,109090.0,109080.0,0.09165482]
[1758899336911,1.2499276,109090.0,109080.0,0.11065482]
[1758899337608,1.2499276,109090.0,109080.0,0.20227082]
[1758899337798,1.2499276,109090.0,109080.0,0.11065482]
[1758899339200,1.2499276,109090.0,109080.0,0.20227082]
[1758899339505,1.2499276,109090.0,109080.0,0.11065482]
[1758899339702,1.2499276,109090.0,109080.0,0.20227092]
[1758899340813,1.15832,109090.0,109080.0,0.22485092]
[1758899341313,1.2499277,109090.0,109080.0,0.22485092]
[1758899342712,0.8499277,109090.0,109080.0,0.22485092]
[1758899344216,0.8499277,109090.0,109080.0,0.13315482]
[1758899345206,0.8499277,109090.0,109080.0,0.22477092]
[1758899345501,0.75832,109090.0,109080.0,0.22477092]
[1758899345916,0.75832,109090.0,109080.0,0.23448092]
[1758899346518,0.75832,109090.0,109080.0,0.22477092]
[1758899346814,0.8499277,109090.0,109080.0,0.22477092]
[1758899347201,0.75832,109090.0,109080.0,0.22477092]
[1758899348114,0.74438,109090.0,109080.0,0.99153791]
[1758899348910,0.7216,109090.0,109080.0,0.63448092]
[1758899349107,0.7216,109090.0,109080.0,0.99153791]
[1758899349316,0.7216,109090.0,109080.0,1.50088092]
[1758899349812,0.7216,109090.0,109080.0,0.63448092]
[1758899350007,0.7216,109090.0,109080.0,1.50088092]
[1758899350209,0.75616,109090.0,109080.0,0.22477092]
[1758899350410,0.75616,109090.0,109080.0,1.15680445]
[1758899350710,0.75616,109090.0,109080.0,1.44260899]
[1758899351314,0.75616,109090.0,109080.0,0.57620899]
[1758899351510,0.75616,109090.0,109080.0,1.44256899]
[1758899351813,1.13357224,109090.0,109080.0,0.29040445]
[1758899352116,1.13357224,109090.0,109080.0,1.09113092]
[1758899352414,0.75616,109090.0,109080.0,1.44256899]
[1758899352614,0.75616,109090.0,109080.0,1.15676445]
[1758899352816,0.75616,109090.0,109080.0,0.29040445]
[1758899353012,0.75616,109090.0,109080.0,1.15676445]
[1758899353406,0.75616,109090.0,109080.0,1.09109092]
[1758899353911,0.75616,109090.0,109080.0,0.22477092]
[1758899354113,0.8477677,109090.0,109080.0,1.09109092]
[1758899354310,0.8477677,109090.0,109080.0,0.22477092]
[1758899354612,1.56536125,109090.0,109080.0,0.11057482]
[1758899354815,1.57233357,109090.0,109080.0,0.11057482]
[1758899355910,2.45695409,109090.0,109080.0,0.019]
[1758899356312,2.45695409,109090.0,109080.0,0.015]
[1758899357314,2.45795409,109090.0,109080.0,0.001]
[1758899357820,0.1261845,109070.0,109060.0,0.0916318]
[1758899358116,0.75616,109070.0,109060.0,0.1144318]
[1758899358310,0.75616,109070.0,109060.0,0.20610343]
[1758899359517,0.8477845,109070.0,109060.0,0.09167163]
[1758899359818,0.8477845,109070.0,109060.0,0.11447163]
[1758899360318,0.8477845,109070.0,109060.0,0.18210516]
[1758899360920,0.8477845,109070.0,109060.0,0.27373806]
[1758899361122,0.75616,109070.0,109060.0,0.27373806]
[1758899361422,0.8477844,109070.0,109060.0,0.18210516]
[1758899361624,0.75616,109070.0,109060.0,0.27373796]
[1758899362117,0.75616,109070.0,109060.0,0.11647163]
[1758899362118,0.8477844,109070.0,109060.0,0.11647163]
[1758899362519,0.8477844,109070.0,109060.0,0.20810443]
[1758899362818,0.75616,109070.0,109060.0,0.20810443]
[1758899363522,0.8477844,109070.0,109060.0,0.11647163]
[1758899363917,0.8477844,109070.0,109060.0,0.20810443]
[1758899364426,0.8477844,109070.0,109060.0,0.11647163]
[1758899364625,0.8477844,109070.0,109060.0,0.09367163]
[1758899364820,2.43954927,109070.0,109060.0,0.09367163]
[1758899365528,0.8477844,109070.0,109060.0,0.11647163]
[1758899366027,1.2477844,109070.0,109060.0,0.09367163]
[1758899367121,1.27136019,109070.0,109060.0,0.09367163]
[1758899368220,2.13776019,109070.0,109060.0,0.18530443]
[1758899368525,0.75616,109070.0,109060.0,0.20810443]
[1758899369226,0.8477844,109070.0,109060.0,0.20810443]
[1758899369723,0.8477844,109070.0,109060.0,0.11647163]
[1758899370126,0.8477844,109070.0,109060.0,0.20810443]
[1758899370630,0.8477844,109070.0,109060.0,0.11647163]
[1758899371523,0.8477844,109070.0,109060.0,0.20810443]
[1758899372531,0.8477845,109070.0,109060.0,0.20810453]
[1758899372731,0.75616,109070.0,109060.0,0.20810453]
[1758899374133,0.8477845,109070.0,109060.0,0.11647163]
[1758899374329,0.8477845,109070.0,109060.0,0.11643163]
[1758899374831,0.8477845,109070.0,109060.0,0.20806453]
[1758899375332,0.75616,109070.0,109060.0,0.20806453]
[1758899377029,0.8477844,109070.0,109060.0,0.20806453]
[1758899377229,0.75616,109070.0,109060.0,0.20806453]
[1758899377732,0.74339,109070.0,109060.0,0.61206453]
[1758899378233,0.7216,109070.0,109060.0,0.61206453]
[1758899378428,0.3608,109070.0,109060.0,0.67769806]
[1758899378732,0.3608,109070.0,109060.0,0.67369806]
[1758899378733,0.39602,109070.0,109060.0,0.67369806]
[1758899378929,0.4876445,109070.0,109060.0,0.18206516]
[1758899379136,0.8484445,109070.0,109060.0,0.20806453]
[1758899379937,0.8484445,109070.0,109060.0,0.11643163]
[1758899380833,0.8484445,109070.0,109060.0,0.20806453]
[1758899381033,0.75682,109070.0,109060.0,0.20806453]
[1758899382534,0.7216,109070.0,109060.0,0.93651787]
[1758899382833,0.7216,109070.0,109060.0,1.0021514]
[1758899383135,0.7216,109070.0,109060.0,1.8684714]
[1758899383832,0.73431,109070.0,109060.0,1.54001806]
[1758899384038,0.8259345,109070.0,109060.0,1.14001806]
[1758899384225,0.8484445,109070.0,109060.0,1.14001806]
[1758899384425,0.8484445,109070.0,109060.0,0.18206516]
[1758899384634,0.8484445,109070.0,109060.0,0.15926516]
[1758899385039,1.2484445,109070.0,109060.0,0.15926516]
[1758899385629,1.57394978,109070.0,109060.0,0.09363163]
[1758899385941,2.44022978,109070.0,109060.0,0.002]
[1758899386230,0.1268613,109050.0,109040.0,0.06563353]
[1758899386537,0.8484613,109050.0,109040.0,0.15732197]
[1758899387738,0.8484613,109050.0,109040.0,0.17432197]
[1758899389238,0.8484613,109050.0,109040.0,0.26597167]
[1758899389441,0.8484613,109050.0,109040.0,0.17432197]
[1758899390146,1.2484613,109050.0,109040.0,0.17432197]
[1758899391047,1.2484613,109050.0,109040.0,0.26597167]
[1758899392042,1.2484613,109050.0,109040.0,0.28913167]
[1758899392438,0.75682,109050.0,109040.0,0.28913167]
[1758899392644,0.8484612,109050.0,109040.0,0.28913167]
[1758899393839,0.75682,109050.0,109040.0,0.28913167]
[1758899394240,0.8484613,109050.0,109040.0,0.28913167]
[1758899395143,0.75682,109050.0,109040.0,0.28913167]
[1758899395344,0.75682,109050.0,109040.0,0.30184167]
[1758899395543,0.75682,109050.0,109040.0,0.28913167]
[1758899396349,0.75682,109050.0,109040.0,0.30184167]
[1758899396746,0.74411,109050.0,109040.0,0.30184167]
[1758899396950,0.7216,109050.0,109040.0,0.30184167]
[1758899397142,0.75682,109050.0,109040.0,0.28913167]
[1758899397342,0.75682,109050.0,109040.0,1.15545167]
[1758899397542,0.74411,109050.0,109040.0,1.16816167]
[1758899397843,0.7216,109050.0,109040.0,1.16816167]
[1758899398044,0.74411,109050.0,109040.0,0.30188167]
[1758899398253,0.75682,109050.0,109040.0,1.16816167]
[1758899398448,0.8484613,109050.0,109040.0,0.28917167]
[1758899398647,0.8484613,109050.0,109040.0,1.06380197]
[1758899398843,0.8484613,109050.0,109040.0,1.15545167]
[1758899399848,0.75682,109050.0,109040.0,1.15545167]
[1758899400050,0.74411,109050.0,109040.0,1.16816167]
[1758899400551,0.7216,109050.0,109040.0,1.56816167]
[1758899400751,0.3608,109050.0,109040.0,1.82803342]
[1758899400958,0.01271,109060.0,109050.0,0.1255113]
[1758899400959,0.3608,109060.0,109050.0,0.1255113]
[1758899401151,0.3608,109060.0,109050.0,0.19133631]
[1758899401454,0.3608,109060.0,109050.0,0.59133631]
[1758899401747,0.3608,109060.0,109050.0,1.48345655]
[1758899401955,0.3608,109060.0,109050.0,1.56560115]
[1758899402258,0.3608,109060.0,109050.0,0.69936115]
[1758899402445,0.3608,109060.0,109050.0,0.70236115]
[1758899402750,0.3608,109060.0,109050.0,1.08641655]
[1758899402955,0.3608,109060.0,109050.0,0.22021655]
[1758899403255,0.3608,109060.0,109050.0,1.08641655]
[1758899403451,0.3608,109060.0,109050.0,1.09241655]
[1758899403653,0.3608,109060.0,109050.0,1.17456115]
[1758899404249,0.3608,109070.0,109060.0,0.1199229]
[1758899404457,0.37351,109090.0,109080.0,0.03492]
[1758899404647,0.3608,109090.0,109080.0,1.05849771]
[1758899404851,0.3608,109090.0,109080.0,1.15019456]
[1758899405060,0.39488,109090.0,109080.0,0.27140456]
[1758899405245,0.4864879,109090.0,109080.0,0.27140456]
[1758899405446,0.4864879,109090.0,109080.0,0.17978856]
[1758899405655,0.4864879,109090.0,109080.0,0.15749856]
[1758899405874,0.8864879,109090.0,109080.0,0.09169685]
[1758899406847,0.8874879,109090.0,109080.0,0.09169685]
[1758899407746,0.8994879,109090.0,109080.0,0.09169685]
[1758899408357,0.8994879,109090.0,109070.0,0.06580171]
[1758899408358,0.1259863,109080.0,109070.0,0.06580171]
[1758899408653,0.1259947,109070.0,109060.0,0.15743481]
[1758899408855,0.1259947,109070.0,109050.0,1.03073663]
[1758899408856,0.1047831,109060.0,109050.0,1.03073663]
[1758899409057,0.37395,109060.0,109050.0,1.03073663]
[1758899409353,0.37395,109060.0,109050.0,1.12240826]
[1758899409845,0.4868031,109060.0,109050.0,0.27758366]
[1758899410043,0.4868031,109060.0,109050.0,0.15747334]
[1758899410748,0.4868031,109060.0,109050.0,0.18468334]
[1758899411049,0.4868031,109060.0,109050.0,0.16347334]
[1758899411354,0.8868031,109060.0,109050.0,0.16347334]
[1758899411550,0.96047966,109060.0,109050.0,0.18468334]
[1758899411946,0.46884656,109060.0,109050.0,0.27632344]
[1758899412149,0.56047826,109060.0,109050.0,0.27632344]
[1758899412347,0.56047826,109060.0,109050.0,0.27932344]
[1758899412548,0.56047826,109060.0,109050.0,0.16647334]
[1758899413050,0.56047826,109060.0,109050.0,0.18768334]
[1758899413452,0.56047826,109060.0,109050.0,0.27932344]
[1758899414153,0.56047826,109060.0,109050.0,0.21352173]
[1758899414554,0.56047826,109060.0,109050.0,0.12188163]
[1758899414857,0.56047826,109060.0,109050.0,0.10067163]
[1758899415460,0.56047826,109060.0,109050.0,0.21352173]
[1758899415660,0.56047826,109060.0,109050.0,0.27932344]
[1758899416661,0.39517,109060.0,109050.0,0.27932344]
[1758899417460,0.4868017,109060.0,109050.0,0.27932344]
[1758899417659,0.39517,109060.0,109050.0,0.27932344]
[1758899418254,0.4868017,109060.0,109050.0,0.18768334]
[1758899418454,0.4868017,109060.0,109050.0,0.27932344]
[1758899418959,0.39517,109060.0,109050.0,0.27932344]
[1758899419661,0.4868017,109060.0,109050.0,0.27932344]
[1758899419856,0.4868017,109060.0,109050.0,0.21352173]
[1758899421359,0.4868017,109060.0,109050.0,0.27932344]
[1758899421869,0.4868017,109060.0,109050.0,0.21352313]
[1758899422164,0.4868017,109060.0,109050.0,0.12188163]
[1758899422662,0.4868017,109060.0,109050.0,0.21352313]
[1758899423055,0.4868017,109060.0,109050.0,0.12188163]
[1758899423658,0.4868017,109060.0,109050.0,0.10067163]
[1758899423861,1.24431337,109060.0,109050.0,0.10067163]
[1758899424062,1.24431337,109060.0,109050.0,0.009]
[1758899424465,2.11015337,109060.0,109050.0,0.009]
[1758899424870,0.1260199,109040.0,109030.0,0.06591802]
[1758899425059,0.8476199,109040.0,109030.0,0.06591802]
[1758899425362,0.8476199,109040.0,109030.0,0.09181316]
[1758899425864,0.8476199,109040.0,109030.0,0.11302316]
[1758899426062,1.60513157,109040.0,109030.0,0.09181316]
[1758899426262,1.60513157,109040.0,109030.0,0.09881316]
[1758899426663,1.60513157,109040.0,109030.0,0.11181316]
[1758899426863,1.60513157,109040.0,109030.0,0.02011631]
[1758899428066,2.47097157,109040.0,109030.0,0.02011631]
[1758899428657,1.60513157,109040.0,109030.0,0.02011631]
[1758899428956,2.47097157,109040.0,109030.0,0.02011631]
[1758899429158,0.0916751,109010.0,109000.0,0.15752251]
[1758899429361,0.8476451,109010.0,109000.0,0.0917235]
[1758899429554,0.8476451,109010.0,109000.0,0.18343716]
[1758899429962,0.92253622,109010.0,109000.0,0.18343716]
[1758899430265,1.28014716,109010.0,109000.0,0.09575366]
[1758899430465,1.68750883,109010.0,109000.0,0.01104]
[1758899431469,1.68750883,109010.0,109000.0,0.00504]
[1758899431661,1.32999716,109010.0,109000.0,0.00504]
[1758899431858,2.55338883,109010.0,109000.0,0.00504]
[1758899432061,2.55338883,109010.0,109000.0,0.00104]
[1758899432260,0.92999716,109010.0,109000.0,0.0937235]
[1758899432476,0.92263549,109010.0,109000.0,0.00204]
[1758899432766,1.32995769,109010.0,109000.0,0.00204]
[1758899432964,2.55338936,109010.0,109000.0,0.00204]
[1758899433772,0.1265519,108990.0,108980.0,0.0916993]
[1758899433974,0.1265604,108980.0,108970.0,0.02115]
[1758899434168,0.4873604,108980.0,108960.0,2.47787457]
[1758899434366,0.37346,108970.0,108960.0,1.60527457]
[1758899434568,0.37356372,108970.0,108960.0,1.60527457]
[1758899434766,0.37356372,108970.0,108960.0,1.69703873]
[1758899435571,0.36090372,108970.0,108960.0,1.704242]
[1758899436565,0.37356372,108970.0,108960.0,1.704242]
[1758899436876,0.39576372,108970.0,108960.0,0.2119054]
[1758899437176,0.39576372,108970.0,108960.0,0.2149054]
[1758899437177,0.39976372,108970.0,108960.0,0.2149054]
[1758899437573,0.39976372,108970.0,108960.0,0.2278254]
[1758899438067,0.38710372,108970.0,108960.0,0.2278254]
[1758899438260,0.39976372,108970.0,108960.0,0.2149054]
[1758899438460,0.39976372,108970.0,108960.0,0.2278254]
[1758899438860,0.38710372,108970.0,108960.0,0.2278254]
[1758899439062,0.38710372,108970.0,108960.0,0.2278654]
[1758899439965,0.00410372,108970.0,108960.0,0.98537707]
[1758899440567,0.00410372,108970.0,108960.0,0.58537707]
[1758899440762,0.00410372,108970.0,108960.0,0.2278654]
[1758899440974,0.00410372,108970.0,108960.0,0.58537707]
[1758899441473,0.00410372,108970.0,108960.0,0.2278654]
[1758899442175,0.00410372,108970.0,108960.0,0.98537707]
[1758899443075,0.02630372,108970.0,108960.0,0.98537707]
[1758899443382,0.00410372,108970.0,108960.0,0.6278654]
[1758899444066,0.02630372,108970.0,108960.0,0.6278654]
[1758899444263,0.03896372,108970.0,108960.0,1.1001854]
[1758899444771,0.39976372,108970.0,108960.0,1.1002254]
[1758899444967,0.39976372,108970.0,108960.0,1.1000254]
[1758899445276,0.39976372,108970.0,108960.0,0.2278654]
[1758899445466,0.39976372,108970.0,108960.0,1.1003054]
[1758899445667,0.38710372,108970.0,108960.0,1.1003054]
[1758899445869,0.36490372,108970.0,108960.0,1.5003054]
[1758899447274,0.00410372,108970.0,108960.0,1.5003054]
[1758899447478,0.00410372,108970.0,108960.0,1.9616914]
[1758899447778,0.00410372,108970.0,108960.0,1.9612514]
[1758899448680,0.00410372,108970.0,108960.0,1.9614914]
[1758899449474,0.00410372,108970.0,108960.0,0.98533707]
[1758899449680,0.02630372,108970.0,108960.0,1.0997854]
[1758899450274,0.02630372,108970.0,108960.0,0.2278254]
[1758899450477,0.02630372,108970.0,108960.0,1.0997854]
[1758899450668,0.00410372,108970.0,108960.0,1.85729707]
[1758899451780,0.02630372,108970.0,108960.0,1.45717707]
[1758899452084,0.02630372,108970.0,108960.0,1.0996654]
[1758899452272,0.00410372,108970.0,108960.0,1.0996654]
[1758899452779,0.00410372,108970.0,108960.0,0.2149054]
[1758899452780,0.39976372,108970.0,108960.0,0.2149054]
[1758899453079,0.38710372,108970.0,108960.0,1.0997054]
[1758899453267,0.39976372,108970.0,108960.0,1.0996254]
[1758899454171,0.38710372,108970.0,108960.0,1.0996254]
[1758899454367,0.38710372,108970.0,108960.0,0.2278254]
[1758899454573,0.49147152,108970.0,108960.0,0.2149054]
[1758899454775,0.89147152,108970.0,108960.0,1.0868654]
[1758899455081,0.89147152,108970.0,108960.0,1.07966213]
[1758899455082,0.39976372,108970.0,108960.0,1.07966213]
[1758899455280,0.39976372,108970.0,108960.0,1.09258213]
[1758899455479,0.38710372,108970.0,108960.0,1.09258213]
[1758899456778,0.38710372,108970.0,108960.0,1.45761103]
[1758899456982,0.38710372,108970.0,108960.0,1.10009936]
[1758899457877,0.38710372,108970.0,108960.0,1.10033936]
[1758899458578,0.36490372,108970.0,108960.0,1.10033936]
[1758899458785,0.00410372,108970.0,108960.0,1.85785103]
[1758899459182,0.00410372,108970.0,108960.0,1.92365274]
[1758899460579,0.00410372,108970.0,108960.0,1.56634107]
[1758899460580,0.02630372,108970.0,108960.0,1.56634107]
[1758899460884,0.00410372,108970.0,108960.0,0.69394107]
[1758899461085,0.00410372,108970.0,108960.0,1.56622107]
[1758899461280,0.00410372,108970.0,108960.0,2.28453274]
[1758899461684,0.00410372,108970.0,108960.0,1.92373274]
[1758899461986,0.00410372,108970.0,108960.0,1.92349274]
[1758899462186,0.00410372,108970.0,108960.0,1.05145274]
[1758899462387,0.00410372,108970.0,108960.0,1.92353274]
[1758899462787,0.00410372,108970.0,108960.0,2.28433274]
[1758899465274,0.00410372,108970.0,108960.0,1.92353274]
[1758899465888,0.00410372,108970.0,108960.0,1.92337274]
[1758899466481,0.00410372,108970.0,108960.0,2.28417274]
[1758899466681,0.00410372,108970.0,108960.0,2.49937909]
[1758899467083,0.00410372,108970.0,108960.0,2.49905909]
[1758899468079,0.3608,108980.0,108970.0,0.1257678]
[1758899468282,0.3608,108990.0,108980.0,0.1257594]
[1758899468484,0.3608,108990.0,108980.0,1.28343841]
[1758899468688,0.3608,108990.0,108980.0,1.66156158]
[1758899468888,0.3608,108990.0,108980.0,0.50388257]
[1758899469079,0.36088983,108990.0,108980.0,1.44170854]
[1758899469289,0.36088983,108990.0,108980.0,0.56986854]
[1758899469592,0.36088983,108990.0,108980.0,1.44170854]
[1758899469885,0.37388983,108990.0,108980.0,1.44170854]
[1758899470080,0.37388983,108990.0,108980.0,1.44162854]
[1758899470292,0.37388983,108990.0,108980.0,0.56986854]
[1758899470481,0.39520983,108990.0,108980.0,0.64462607]
[1758899470681,0.40832983,108990.0,108980.0,0.28350953]
[1758899470879,0.40832983,108990.0,108980.0,1.15498953]
[1758899471384,0.39520983,108990.0,108980.0,1.15498953]
[1758899471600,0.37388983,108990.0,108980.0,1.15498953]
[1758899471890,0.37388983,108990.0,108980.0,1.51287084]
[1758899472791,0.37388983,108990.0,108980.0,0.64139084]
[1758899472983,0.01308983,108990.0,108980.0,1.91279084]
[1758899473288,0.01308983,108990.0,108980.0,2.00847431]
[1758899473489,0.01308983,108990.0,108980.0,1.13707431]
[1758899473790,0.01308983,108990.0,108980.0,2.00819431]
[1758899474085,0.01308983,108990.0,108980.0,1.13707431]
[1758899474287,0.01308983,108990.0,108980.0,2.00795431]
[1758899474478,0.01308983,108990.0,108980.0,2.00783431]
[1758899474791,0.01308983,108990.0,108980.0,0.779193]
[1758899474989,0.01308983,108990.0,108980.0,1.649873]
[1758899475180,0.01308983,108990.0,108980.0,1.649793]
[1758899475491,0.01308983,108990.0,108980.0,0.85384784]
[1758899475689,0.01308983,108990.0,108980.0,1.32452784]
[1758899476190,0.01308983,108990.0,108980.0,0.45384784]
[1758899476493,0.01308983,108990.0,108980.0,1.32428784]
[1758899476691,0.37388983,108990.0,108980.0,1.32428784]
[1758899476892,0.40832983,108990.0,108980.0,0.28350953]
[1758899477192,0.80832983,108990.0,108980.0,1.14107953]
[1758899477383,0.79520983,108990.0,108980.0,1.15374953]
[1758899478491,0.37388983,108990.0,108980.0,1.15374953]